Cogmind - Beta 11 X7 @@@ ROGUE MODE // 2021.09.03 @ 20:00:12 Player: aoemica Result: Self-destructed Performance ------------- Evolutions (1) 500 Regions Visited (4) 800 Robots Destroyed (2) 10 Value Destroyed (70) 70 Prototype IDs (1) 20 Alien Tech Used (0) 0 Bonus (0) 0 TOTAL SCORE: 1400 Bonus ------- None Cogmind --------- Core Integrity 343/400 Matter 220/300 Energy 99/100 System Corruption 0% Temperature Cool (0) Movement Core (50) Location -9/Exiles Parts ------- > --- POWER (1) -------- (None) > --- PROPULSION (4) --- Light Treads Light Treads Improved Flight Unit > --- UTILITY (2) ------ (None) > --- WEAPON (2) ------- Light Assault Rifle > --- INVENTORY (5) ---- Light Ion Engine Hardened Light Armor Plating Rocket Launcher Missile Launcher Missile Launcher Peak State ------------ > --- POWER ------------ (None) > --- PROPULSION ------- Light Treads Light Treads Improved Flight Unit > --- UTILITY ---------- (None) > --- WEAPON ----------- Light Assault Rifle > --- INVENTORY -------- Light Ion Engine Hardened Light Armor Plating Rocket Launcher Missile Launcher Missile Launcher [Rating: 7] Favorites ----------- Power None Propulsion Light Treads Treads Light Treads Flight Unit Improved Flight Unit Utility None Weapon Light Assault Rifle Ballistic Gun Light Assault Rifle Launcher Grenade Launcher Build | -11 -10 -9 -9 -9 ------- Run | Scr Mat Mat Min Exi Slots Evolved 2 | . . 2 . . Power . | . . . . . Propulsion 2 | . . 2 . . Utility . | . . . . . Weapon . | . . . . . Parts Attached 5 | 3 1 1 . . Power . | . . . . . Engine . | . . . . . Core . | . . . . . Reactor . | . . . . . Propulsion 3 | 2 . 1 . . Treads 2 | 2 . . . . Leg . | . . . . . Wheel . | . . . . . Hover . | . . . . . Flight 1 | . . 1 . . Utility . | . . . . . Device . | . . . . . Storage . | . . . . . Processor . | . . . . . Hackware . | . . . . . Protection . | . . . . . Artifact . | . . . . . Weapon 2 | 1 1 . . . Energy Gun . | . . . . . Energy Cannon . | . . . . . Ballistic Gun 1 | 1 . . . . Ballistic Cannon . | . . . . . Launcher 1 | . 1 . . . Special Weapon . | . . . . . Impact Weapon . | . . . . . Slashing Weapon . | . . . . . Piercing Weapon . | . . . . . Special Melee Weapon . | . . . . . Unidentified Prototypes 1 | . . 1 . . Parts Lost . | . . . . . Power . | . . . . . Propulsion . | . . . . . Utility . | . . . . . Weapon . | . . . . . Highest Loss Streak . | . . . . . Average Slot Usage (%) 44 | . 45 44 44 44 Treads 23 | . 28 22 22 22 Flight 7 | . . 11 11 11 Ballistic Gun 11 | . 14 11 11 11 Launcher 1 | . 3 . . . Naked Turns . | . . . . . Heaviest Build 1 | 1 1 1 1 1 Greatest Support 20 | 20 3 3 3 3 Greatest Overweight (x) . | . . . . . Average Overweight (x) . | . . . . . Largest Inventory Capacity 5 | 5 5 5 5 5 Average Capacity 5 | 5 5 5 5 5 Most Carried 5 | 4 2 5 5 5 Average Carried 2 | 1 1 3 5 5 Final Capacity 5 | 5 5 5 5 5 Final Carried 5 | 1 2 5 5 5 Class Distribution -------------------- 100% | Mutant Dominant Class ---------------- Mutant | -10/Materials Mutant | -9/Materials Mutant | -9/Mines Mutant | -9/Exiles Resources | -11 -10 -9 -9 -9 ----------- Run | Scr Mat Mat Min Exi Matter Collected 200 | 200 . . . . Remotely . | . . . . . Salvage Created 7 | . 7 . . . Parts 5 | . 5 . . . Haulers Intercepted . | . . . . . Recyclers Shooed . | . . . . . Parts Field Recycled . | . . . . . Retrieved Matter . | . . . . . Parts Self-Destructed . | . . . . . Prevented . | . . . . . Kills | -11 -10 -9 -9 -9 ------- Run | Scr Mat Mat Min Exi Combat Hostiles Destroyed 2 | . 2 . . . AOE 2 | . 2 . . . Classes Destroyed 1 | . 1 . . . Swarmer 2 | . 2 . . . Best Kill Streak 2 | . 2 . . . Combat Bots Only 2 | . 2 . . . Max Kills in Single Turn 1 | . 1 . . . Gunslinging . | . . . . . Exploded 1 | . 1 . . . Melee . | . . . . . Uniques/NPCs Destroyed . | . . . . . Combat | -11 -10 -9 -9 -9 -------- Run | Scr Mat Mat Min Exi Damage Taken 357 | . 241 116 . . Core 77 | . 20 57 . . Absorbed by Shields . | . . . . . Core Remaining (%) 96 | 100 92 . . . Volleys Fired 3 | . 3 . . . Largest 1 | . 1 . . . Hottest 30 | . 30 . . . Shots Fired 3 | . 3 . . . Gun . | . . . . . Cannon . | . . . . . Launcher 3 | . 3 . . . Special . | . . . . . Kinetic . | . . . . . Thermal . | . . . . . Explosive 3 | . 3 . . . Electromagnetic . | . . . . . Robot Hit Streak 1 | . 1 . . . Robot Miss Streak 1 | . 1 . . . Penetration Max . | . . . . . Secondary Targets . | . . . . . Shots Hit Robots 1 | . 1 . . . Core Hits 2 | . 2 . . . Critical Kills . | . . . . . Critical Parts Destroyed . | . . . . . Critical Strikes . | . . . . . Melee Attacks . | . . . . . Impact . | . . . . . Slashing . | . . . . . Piercing . | . . . . . Sneak Attacks . | . . . . . Combat Hostiles . | . . . . . Follow-up Attacks . | . . . . . Damage Inflicted 156 | . 156 . . . Guns . | . . . . . Cannons . | . . . . . Explosions 156 | . 156 . . . Melee . | . . . . . Ramming . | . . . . . Kinetic . | . . . . . Thermal 31 | . 31 . . . Explosive 125 | . 125 . . . Electromagnetic . | . . . . . Impact . | . . . . . Slashing . | . . . . . Piercing . | . . . . . Highest Corruption . | . . . . . Average Corruption . | . . . . . Corruption Purged . | . . . . . Overload Shots . | . . . . . Overflow Damage . | . . . . . Projectiles . | . . . . . Explosions . | . . . . . Melee . | . . . . . Knockbacks . | . . . . . Impact . | . . . . . Kinetic . | . . . . . Secondary . | . . . . . Self-Inflicted Damage 205 | . 205 . . . Shots 4 | . 4 . . . Rammed . | . . . . . Targets Rammed . | . . . . . Kicked . | . . . . . Crushed . | . . . . . Highest Temperature 14 | . 14 . . . Average Temperature 14 | . 14 . . . Received Heat Transfer 66 | . 12 54 . . Siege Activations . | . . . . . Robots Corrupted . | . . . . . Combat Hostiles . | . . . . . Parts Fried . | . . . . . Impact Corruptions . | . . . . . Robots Melted . | . . . . . Combat Hostiles . | . . . . . Parts Melted . | . . . . . Heat Transferred 50 | . 50 . . . Parts Sabotaged . | . . . . . Parts Stolen . | . . . . . Parts Stripped . | . . . . . Power Chain Reactions . | . . . . . Missiles Intercepted . | . . . . . Alert | -11 -10 -9 -9 -9 ------- Run | Scr Mat Mat Min Exi Peak Influence 200 | . 200 129 49 . Initial 84 | . . 84 49 . Average 73 | . 63 92 49 . Maximum Alert Level 1 | . 1 . . . Low Security (%) 97 | 100 92 100 100 . Level 1 2 | . 7 . . . Level 2 . | . . . . . Level 3 . | . . . . . Level 4 . | . . . . . Level 5 . | . . . . . High Security . | . . . . . Max Security . | . . . . . Squads Dispatched 1 | . 1 . . . Investigation 1 | . 1 . . . Extermination . | . . . . . Reinforcement . | . . . . . Assault . | . . . . . Garrison . | . . . . . Intercept . | . . . . . Construction Impeded . | . . . . . Haulers Reinforced . | . . . . . Active Scanning Responses . | . . . . . Cargo Convoy Interrupts . | . . . . . Stealth | -11 -10 -9 -9 -9 --------- Run | Scr Mat Mat Min Exi Distress Signals 1 | . . 1 . . Communications Jammed . | . . . . . Distress Signals . | . . . . . Times Spotted 11 | . 6 5 . . Peak Tracking Total 6 | . 3 6 . . Tactical Retreats . | . . . . . Traps | -11 -10 -9 -9 -9 ------- Run | Scr Mat Mat Min Exi Traps Triggered . | . . . . . Indirectly . | . . . . . Trap Hack Attempts . | . . . . . Triggered . | . . . . . Disarmed . | . . . . . Reprogrammed . | . . . . . Reused . | . . . . . Traps Extracted . | . . . . . Installed . | . . . . . Triggered . | . . . . . Machines | -11 -10 -9 -9 -9 ---------- Run | Scr Mat Mat Min Exi Machines Disabled 5 | . 5 . . . Max in Single Turn 3 | . 3 . . . Machines Sabotaged . | . . . . . Garrisons Compromised . | . . . . . Overloaded Fab Kills . | . . . . . Fab Network Shutdowns . | . . . . . Hacking | -11 -10 -9 -9 -9 --------- Run | Scr Mat Mat Min Exi Machines Accessed 1 | . 1 . . . Terminals . | . . . . . Fabricators . | . . . . . Repair Stations . | . . . . . Recycling Units 1 | . 1 . . . Scanalyzers . | . . . . . Garrison Access . | . . . . . Total Hacks 1 | . 1 . . . Successful 1 | . 1 . . . Failed . | . . . . . Catastrophic . | . . . . . Database Lockouts . | . . . . . Manual 1 | . 1 . . . Terminals . | . . . . . Fabricators . | . . . . . Repair Stations . | . . . . . Recycling Units 1 | . 1 . . . Scanalyzers . | . . . . . Garrison Access . | . . . . . Terminal Hacks . | . . . . . Fabricator Hacks . | . . . . . Repair Station Hacks . | . . . . . Recycling Unit Hacks . | . . . . . Scanalyzer . | . . . . . Garrison Access Hacks . | . . . . . Unauthorized Hacks 1 | . 1 . . . Terminals . | . . . . . Fabricators . | . . . . . Repair Stations . | . . . . . Recycling Units 1 | . 1 . . . Tunnel 1 | . 1 . . . Scanalyzers . | . . . . . Garrison Access . | . . . . . Data Cores Recovered . | . . . . . Used . | . . . . . Hacking Detections . | . . . . . Full Trace Events . | . . . . . Feedback Events . | . . . . . Feedback Blocked . | . . . . . Robot Schematics Acquired . | . . . . . Robots Built . | . . . . . Matter . | . . . . . Time . | . . . . . Total Robot Build Rating . | . . . . . Part Schematics Acquired . | . . . . . Parts Built . | . . . . . Matter . | . . . . . Time . | . . . . . Total Part Build Rating . | . . . . . Parts Repaired . | . . . . . Time . | . . . . . Parts Recycled . | . . . . . Recycled Matter . | . . . . . Retrieved Matter . | . . . . . Retrieved Components . | . . . . . Parts Scanalyzed . | . . . . . Part Schematics Acquired . | . . . . . Parts Damaged . | . . . . . Bothacking | -11 -10 -9 -9 -9 ------------ Run | Scr Mat Mat Min Exi Used RIF Installer . | . . . . . Robots Hacked . | . . . . . Non-combat . | . . . . . Combat . | . . . . . Robot Hacks Applied . | . . . . . Relay Couplers Released . | . . . . . Robots Rewired . | . . . . . Allies Hacked . | . . . . . Hacks Repelled . | . . . . . Allies | -11 -10 -9 -9 -9 -------- Run | Scr Mat Mat Min Exi Total Allies . | . . . . . Largest Group . | . . . . . Highest-Rated Group . | . . . . . Highest-Rated Ally . | . . . . . Total Orders . | . . . . . Ally Attacks . | . . . . . Total Damage . | . . . . . Kills . | . . . . . Allies Corrupted . | . . . . . Allies Melted . | . . . . . Intel | -11 -10 -9 -9 -9 ------- Run | Scr Mat Mat Min Exi Robot Analysis Total . | . . . . . Derelict Logs Recovered . | . . . . . Drone Launches . | . . . . . Drone Recoveries . | . . . . . Exploration | -11 -10 -9 -9 -9 ------------- Run | Scr Mat Mat Min Exi Turns Passed 143 | 9 41 68 13 12 Spaces Moved 243 | 5 64 125 26 23 Core 242 | 4 64 125 26 23 Treads 1 | 1 . . . . Legs . | . . . . . Wheels . | . . . . . Hover . | . . . . . Flight . | . . . . . Fastest Speed 50 | 50 50 50 50 50 Average Speed 50 | 72 50 50 50 50 Slowest Speed 160 | 160 50 50 50 50 Overloaded Moves . | . . . . . Propulsion Burnouts . | . . . . . Robots Hopped . | . . . . . Cave-ins Triggered . | . . . . . Exploration Rate (%) 12 | 2 20 19 13 8 Regions Visited 4 Branch Regions 2 Pre-discovered Areas 1 | . 1 . . . Known Exits Taken . | . . . . . Unknown Exits Taken 4 | 1 1 1 1 . Scrap Searched . | . . . . . Spaces Dug . | . . . . . Terrain Destroyed 32 | . 32 . . . Melee . | . . . . . Projectile . | . . . . . AOE 32 | . 32 . . . Terrain Rammed . | . . . . . Walls Destroyed . | . . . . . Machines Disabled . | . . . . . Actions | -11 -10 -9 -9 -9 --------- Run | Scr Mat Mat Min Exi Total 257 | 10 69 130 25 23 Wait . | . . . . . Move 239 | 4 63 124 25 23 Hop . | . . . . . Pick Up 5 | . 1 4 . . Fast Attach 3 | 2 . 1 . . Attach 2 | 1 1 . . . Detach 1 | . 1 . . . Swap . | . . . . . Drop 4 | 3 . 1 . . Fire 3 | . 3 . . . Melee . | . . . . . Ram . | . . . . . Kick . | . . . . . Crush . | . . . . . Escape Stasis . | . . . . . Rewire . | . . . . . Trap . | . . . . . Miscellaneous . | . . . . . Route ------- -11/Scrapyard -10/Materials -9/Materials -9/Mines -9/Exiles History --------- Turn | Location | Event 1 | -11/Scrapyard | Released all parts (6) 4 | -11/Scrapyard | Discovered new exit (range 3) 10 | -11/Scrapyard | Entered Materials 48 | -10/Materials | Discovered new exit (range 7) 51 | -10/Materials | Entered another Materials area 51 | -9/Materials | Evolved 2 slots: Propulsion x2 107 | -9/Materials | Discovered new exit (range 16) 119 | -9/Materials | Entered Mines 130 | -9/Mines | Deemed a non-threat by the Exiles lab entrance 130 | -9/Mines | Discovered new exit (range 5) 132 | -9/Mines | Entered Exiles 144 | -9/Exiles | Met 8R-AWN 144 | -9/Exiles | Self-destructed Last Messages --------------- 00057_ Identified Imp. Flight Unit. 00073_ Acquired Rocket Launcher. 00076_ Acquired Hrd. Light Armor Plating. 00099_ W-16 Scout sends out distress signal. 00107_ EXIT=FOUND 00114_ Acquired Missile Launcher. 00115_ Dropped Grenade Launcher. 00115_ Acquired Missile Launcher. LOCATION=UNKNOWN GOAL=ESCAPE Something is scanning the area. 00120_ K-01 Serf collects debris. 00125_ K-01 Serf cleans the Laser Drill. 00130_ "No threat detected, you may enter." 00130_ EXIT=FOUND LOCATION=UNKNOWN GOAL=ESCAPE 8R-AWN: Oh you look... interesting. The Exiles will probably want to check you out. Keep your grabby things to yourself, though. I've got my sensors on you. Map ----- +----------------------------------------------------+ | ?????????????????????????????????????????????????? | | ?????????????????????????????????????????????????? | | ?????????????????????????????????????????????????? | | ?????????????????????????????????????????????????? | | ?????????????????????????????????????????????????? | | ?????????????????????????????????????????????????? | | ?????????????????????????????????????????????????? | | ?????????????????????????????????????????????????? | | ?????????????????????????????????????????????????? | | ?????????????????????????????????????????????????? | | ???????????????????????????????????? ????????????? | | ???????????????????????????????????? ??????????? | | ???????????????????????????????????# #?????????? | | ?????????????????????????????????## ##????????? | | ?????????????????????????????????# #????????? | | ?????????????????????????????????# ?????????? | | ?????????????#??????????????????## ?????????? | | ?????????????" g???????????????## #??????????? | | ????????????#" ??????????????# #??????????? | | ????????????? #??????????### #???????????? | | ????????????? ?######### #???????????? | | ???????????? #""""## #????????????? | | ????????????? * ##???????????? | | ???????????????# * #???????????? | | ????????????????? ##??????????? | | ????????????????????????#@ ###????????? | | ????????????????????????#### * ###??????? | | ???????????????????????????##### ##?????? | | ???????????????????????????????### #?????? | | ?????????????????????????????????### #?????? | | ???????????????????????????????????### #?????? | | ????????????????????????????????????#" ##????? | | ????????????????????????????????????#### ###??? | | ???????????????????????????????????????# ##?? | | ???????????????????????????????????????## ### | | ????????????????????????????????????????### # | | ??????????????????????????????????????????# ## | | ??????????????????????????????????????????## ##? | | ???????????????????????????????????????????#####?? | | ?????????????????????????????????????????????????? | | ?????????????????????????????????????????????????? | | ?????????????????????????????????????????????????? | | ?????????????????????????????????????????????????? | | ?????????????????????????????????????????????????? | | ?????????????????????????????????????????????????? | | ?????????????????????????????????????????????????? | | ?????????????????????????????????????????????????? | | ?????????????????????????????????????????????????? | | ?????????????????????????????????????????????????? | | ?????????????????????????????????????????????????? | +----------------------------------------------------+ Best States ------------- Heat Dissipation 28 Energy Generation 5 Energy Capacity 100 Matter Stores 270 Matter Capacity 300 Sight Range 16 Terrain Scan Density 10 Evasion (%) 50 Recoil Reduction 2 Item Schematics ----------------- None Robot Schematics ------------------ None Fabricated ------------ Nothing Alien Tech Used ----------------- None Achievements -------------- None Challenges ------------ None Game ------ Seed NeutralizingThiefMediator Manual? 0 Play Time 00:02:01 Cumulative 469.3 hours Start 2021.09.03 @ 19:58:33 End 2021.09.03 @ 20:00:12 Sessions 1 Manual Loads 0 Difficulty Rogue Special Mode None Game No. 175 Rogue 174 Adventurer 1 Explorer 0 Win Type - Total 36 Types 9/5/6/1/1/0/13/1/0 Lore% 94 Gallery% 95 Achievement% 82 Wizard Run 0 Options --------- ASCII 1 Keyboard 1 Movement Numpad Keybinds 0 Fullscreen 0 Font 18/Smallcaps Map View 76x50 Tactical HUD 1 Map Filters NONE Filters NONE Steam 1 RUN: b455f5bd-171d-42cb-b28f-15d251901b91